bitfinex-derivatives/quotes_ETHF0:USTF0_20250824
["timestamp","ask_amount","ask_price","bid_price","bid_amount"]
[1756047629481,1.196,4794.4,4794.3,0.41726]
[1756047629785,20.847,4794.4,4794.3,1.88036]
[1756047629972,20.847,4794.4,4794.3,0.4411]
[1756047630175,21.0516,4794.4,4793.9,0.77029]
[1756047630380,1.4006,4794.1,4794.0,0.2612]
[1756047630581,1.029,4793.8,4793.7,1.88041]
[1756047630773,1.196,4793.8,4793.7,0.8477]
[1756047630977,1.196,4793.8,4793.7,0.6744]
[1756047631180,0.4461,4793.8,4793.7,1.4631]
[1756047631379,19.8253,4794.0,4793.9,1.4631]
[1756047631692,1.196,4794.0,4793.9,1.4631]
[1756047632287,19.8253,4794.2,4794.1,0.5865]
[1756047632484,20.0981,4794.2,4794.1,1.4631]
[1756047632680,20.3241,4794.2,4794.1,1.4631]
[1756047632985,20.848,4794.2,4794.1,1.4631]
[1756047633187,20.848,4794.2,4794.1,0.9631]
[1756047633486,20.848,4794.2,4794.1,1.3163]
[1756047634189,1.196,4794.2,4794.1,1.3163]
[1756047634493,0.8391,4794.2,4794.1,1.3163]
[1756047634692,1.196,4794.2,4794.1,1.3163]
[1756047635096,1.4527,4794.2,4794.1,1.0539]
[1756047635985,1.196,4794.2,4794.1,1.3163]
[1756047636192,20.847,4794.2,4794.1,1.3163]
[1756047637295,21.0979,4794.2,4794.1,1.3163]
[1756047637490,21.0979,4794.2,4794.1,1.0539]
[1756047638584,21.0959,4794.2,4794.1,1.0539]
[1756047639096,21.0959,4794.2,4794.1,0.8806]
[1756047639284,21.0959,4794.2,4794.1,0.5276]
[1756047639483,21.0959,4794.2,4794.0,0.41728]
[1756047639692,0.8439,4794.1,4794.0,0.41728]
[1756047639995,21.0501,4794.1,4794.0,0.41728]
[1756047640296,1.4011,4793.9,4793.8,1.5696]
[1756047640592,21.0491,4793.9,4793.8,2.08673506]
[1756047640793,1.4011,4793.9,4793.8,2.08673506]
[1756047640986,20.7982,4793.9,4793.8,2.08673506]
[1756047641894,1.1502,4793.9,4793.8,2.08673506]
[1756047642492,20.7972,4793.9,4793.8,2.08673506]
[1756047643193,1.1502,4793.9,4793.8,2.08673506]
[1756047643388,20.7972,4793.9,4793.8,2.08673506]
[1756047644493,1.1502,4793.9,4793.8,2.08673506]
[1756047645299,20.7952,4793.9,4793.8,2.08673506]
[1756047646295,21.0461,4793.9,4793.8,2.08673506]
[1756047646800,1.4011,4793.9,4793.8,2.08673506]
[1756047646998,21.0461,4793.9,4793.8,2.08673506]
[1756047648094,1.4011,4793.9,4793.8,2.08673506]
[1756047648301,21.0441,4793.9,4793.8,0.67743506]
[1756047648501,21.0441,4793.9,4793.8,0.4173]
[1756047648703,21.0441,4793.9,4793.8,0.67797704]
[1756047649300,21.0441,4793.9,4793.8,0.67797739]
[1756047650400,21.0441,4793.9,4793.8,0.26067739]
[1756047650601,22.42941322,4793.9,4793.8,0.26067739]
[1756047651398,26.42941322,4793.9,4793.5,0.41732]
[1756047651599,1.2687,4793.7,4793.4,0.41733]
[1756047651799,1.2687,4793.5,4793.4,0.67823]
[1756047652300,20.9077,4793.5,4793.4,0.67823]
[1756047652596,20.9077,4793.5,4793.4,0.41733]
[1756047652807,20.9077,4793.5,4793.4,0.67823]
[1756047655100,20.9077,4793.5,4793.4,0.41733]
[1756047655399,1.2687,4793.3,4793.2,0.41735]
[1756047655703,1.2687,4793.3,4793.2,0.67825]
[1756047656698,1.1502,4793.3,4793.2,1.39415]
[1756047656894,1.1502,4793.3,4792.6,1.4792047]
[1756047657100,1.1502,4793.3,4792.1,1.83984579]
[1756047657101,1.1502,4792.8,4792.7,1.5697]
[1756047657296,20.9037,4792.8,4792.7,0.6783]
[1756047657599,1.2687,4792.6,4792.5,0.67831]
[1756047658203,1.1502,4792.6,4792.5,1.56971]
[1756047658402,20.7842,4792.6,4792.5,1.82671]
[1756047659205,20.0546,4792.7,4792.6,1.4093]
[1756047659502,0.759,4792.7,4792.6,1.4093]
[1756047660105,1.1502,4792.7,4792.6,1.4093]
[1756047660401,0.6757,4793.6,4793.0,0.3251]
[1756047660610,0.5572,4793.1,4793.0,0.84047]
[1756047660901,0.3384,4793.0,4792.6,0.4174]
[1756047661202,0.5572,4792.8,4792.2,0.5821]
[1756047661410,1.1502,4792.3,4792.2,1.13334]
[1756047661594,20.7832,4792.3,4792.2,1.31906415]
[1756047661798,20.7832,4792.3,4792.2,0.84054]
[1756047662200,20.7832,4792.3,4792.2,1.06914]
[1756047662405,20.7832,4792.3,4792.2,1.39424]
[1756047662807,20.7832,4792.3,4792.2,1.56974]
[1756047663008,20.7832,4792.3,4792.2,1.82674]
[1756047663509,20.7832,4792.3,4792.2,2.08460724]
[1756047664810,20.7832,4792.3,4792.2,1.82760724]
[1756047665410,20.7832,4792.3,4792.2,1.65210724]
[1756047667611,20.7832,4792.3,4792.2,1.65214985]
[1756047668213,22.27961322,4792.3,4792.2,0.93624985]
[1756047668414,20.8943,4792.3,4792.2,0.93624985]
[1756047669109,22.27961322,4792.3,4792.2,0.25790985]
[1756047669314,0.5487,4791.7,4791.3,0.2521]
[1756047669512,0.5487,4791.4,4791.3,0.2521]
[1756047669703,0.5487,4791.4,4791.1,0.41753]
[1756047669906,1.2787,4791.2,4791.1,0.41753]
[1756047670102,1.2787,4791.2,4791.0,0.2521]
[1756047670103,20.9067,4791.2,4791.0,0.2521]
[1756047670305,1.1112,4791.1,4791.0,0.25472028]
[1756047670510,1.2787,4791.1,4791.0,0.25472028]
[1756047670813,1.2787,4791.1,4791.0,0.00262028]
[1756047672212,0.7274,4790.7,4789.9,0.6685]
[1756047672417,0.5487,4790.2,4790.1,0.41762]
[1756047672714,20.9021,4790.2,4790.1,0.66972]
[1756047672919,1.2761,4790.2,4790.1,0.83552]
[1756047673411,1.2761,4790.2,4790.1,0.83800934]
[1756047674014,20.9031,4790.2,4790.1,0.67220934]
[1756047674616,20.7946,4790.2,4790.1,0.83800934]
[1756047674813,20.7946,4790.2,4790.1,3.24252256]
[1756047674814,0.4298,4790.2,4790.1,3.24252256]
[1756047675009,19.626,4790.5,4790.2,0.41761]
[1756047675314,1.2761,4790.2,4790.1,0.25458934]
[1756047675911,20.7936,4790.2,4790.1,1.00838934]
[1756047676111,20.9021,4790.2,4790.1,0.25458934]
[1756047676418,20.9021,4790.2,4790.1,0.00248934]
[1756047677016,1.1676,4788.4,4788.3,0.4179]
[1756047677320,1.1676,4787.9,4787.8,0.93322]
[1756047677617,20.7946,4787.9,4787.8,1.34962]
[1756047677815,1.1676,4787.9,4787.8,1.85492]
[1756047678014,0.16556263,4787.9,4787.8,1.85739782]
[1756047678316,20.79616263,4787.9,4787.8,1.43957782]
[1756047678617,1.17016263,4787.9,4787.8,1.43957782]
[1756047679313,1.17016263,4787.9,4787.8,0.83677782]
[1756047679517,1.17016263,4787.9,4787.8,1.43957782]
[1756047679720,0.81806263,4787.9,4787.8,1.43957782]
[1756047680113,1.17016263,4787.9,4787.8,1.43957782]
[1756047680515,1.17016263,4787.9,4787.8,0.83677782]
[1756047680713,1.17016263,4787.9,4787.8,1.43957782]
[1756047682019,1.17016263,4787.9,4787.8,1.18637782]
[1756047682617,1.17016263,4787.9,4787.8,1.43957782]
[1756047684722,0.00256263,4787.9,4787.8,1.43957782]
[1756047684919,0.00256263,4787.9,4787.8,2.82489104]
[1756047685122,0.16556263,4787.9,4787.8,1.43957782]
[1756047685525,0.00256263,4787.9,4787.8,5.43957782]
[1756047685919,1.2787,4789.2,4789.1,0.6563]
[1756047686119,1.1676,4789.2,4789.1,0.6563]
[1756047686324,20.7976,4789.2,4789.1,1.4371]
[1756047686823,1.1700639,4789.2,4789.1,1.4371]
[1756047687027,0.4322639,4789.2,4789.1,1.4371]
[1756047687516,0.0024639,4789.2,4789.1,1.4371]
[1756047688223,0.0024639,4789.2,4789.1,5.4579]
[1756047688425,0.2182,4790.4,4790.3,0.4176]
[1756047688727,0.1135,4790.3,4790.2,0.2521]
[1756047688926,0.9008,4790.3,4790.2,1.25191]
[1756047689125,0.9008,4790.3,4790.2,1.85471]
[1756047689325,0.90320966,4790.3,4790.2,1.85471]
[1756047689525,1.17000966,4790.3,4790.2,1.85471]
[1756047690628,0.33290966,4790.3,4790.2,1.85471]
[1756047690829,0.16540966,4790.3,4790.2,1.85471]
[1756047691228,1.17000966,4790.3,4790.2,1.85471]
[1756047691630,0.00240966,4790.3,4790.2,1.85471]
[1756047694728,0.3521,4791.8,4791.3,1.4371]
[1756047694931,0.2668,4792.0,4790.9,1.04388]
[1756047694932,1.1676,4792.0,4791.9,1.4371]
[1756047695136,20.7926,4792.0,4791.9,0.4179]
[1756047695340,20.7926,4792.0,4791.8,0.41747]
[1756047695341,20.1737,4792.0,4791.8,0.41747]
[1756047695641,1.4277,4791.9,4791.8,0.1658]
[1756047695828,21.0517,4791.9,4791.8,0.16741002]
[1756047696227,1.0756,4791.9,4791.8,1.18661002]
[1756047696433,21.0517,4791.9,4791.8,0.93341002]
[1756047696632,21.0517,4791.9,4791.8,0.58381002]
[1756047697444,21.0517,4791.9,4791.8,0.91571002]
[1756047697643,21.0507,4791.9,4791.8,0.91571002]
[1756047697839,1.4277,4791.9,4791.8,0.91571002]
[1756047698035,1.4277,4791.9,4791.8,1.42931002]
[1756047698235,21.0487,4791.9,4791.8,1.42931002]
[1756047698945,1.4277,4791.9,4791.8,1.42931002]
[1756047699244,0.00169735,4792.0,4791.9,1.82886]
[1756047700442,41.84316,4794.3,4793.5,1.24333]
[1756047700443,1.1538,4793.6,4793.5,1.24333]
[1756047700640,0.7502,4794.0,4793.9,0.98319]
[1756047700843,1.32938,4794.0,4793.9,0.4358]
[1756047701147,0.9121,4793.7,4793.6,1.82871]
[1756047701444,0.55743057,4793.7,4793.6,1.82871]
[1756047702038,0.91463057,4793.7,4793.6,1.82871]
[1756047702842,0.00253057,4793.7,4793.6,1.82871]
[1756047703243,0.00253057,4793.7,4793.6,5.92926646]
[1756047704551,1.027,4795.0,4794.9,0.2601]
[1756047704744,20.1679,4795.0,4794.6,0.74913]
[1756047704950,1.1728,4794.7,4794.6,1.56853]
[1756047705551,1.17483323,4794.7,4794.6,1.82863]
[1756047705946,0.00203323,4794.7,4794.6,1.82863]
[1756047706653,0.91443323,4794.7,4794.6,1.82863]
[1756047706849,0.00203323,4794.7,4794.6,1.82863]
[1756047707255,0.00203323,4794.7,4794.6,5.92918646]
[1756047708557,20.7788,4795.9,4795.8,0.98303]
[1756047708750,20.7788,4795.9,4795.8,1.49663]
[1756047708949,20.7788,4795.9,4795.8,1.82853]
[1756047709547,1.17462358,4795.9,4795.8,1.83069849]
[1756047710252,1.38832358,4795.9,4795.8,1.49879849]
[1756047710652,1.38832358,4795.9,4795.8,1.08166849]
[1756047712051,0.61972358,4795.9,4795.8,1.41356849]
[1756047712257,1.17462358,4795.9,4795.8,1.41356849]
[1756047712449,0.91422358,4795.9,4795.8,1.41356849]
[1756047712852,0.00182358,4795.9,4795.8,1.41356849]
[1756047714656,0.00182358,4795.9,4795.8,5.41356849]
[1756047715146,1.1728,4796.8,4796.7,1.82845]
[1756047716152,0.00206461,4796.8,4796.7,1.82845]
[1756047719458,0.5549,4798.1,4798.0,0.41693]
[1756047719651,1.1728,4798.1,4798.0,1.49643]
[1756047719846,0.8153,4798.1,4798.0,1.82833]
[1756047720054,0.5549,4798.1,4798.0,1.82833]
[1756047720258,0.9124,4798.1,4798.0,1.82833]
[1756047720453,1.1728,4797.5,4797.4,0.3395]
[1756047720652,0.5549,4797.2,4797.1,0.74891]
[1756047720853,1.3884,4797.2,4797.1,1.31481]
[1756047721053,1.1728,4797.2,4797.1,1.82841]
[1756047721449,1.3884,4797.2,4797.1,0.2601]
[1756047721653,0.3575,4797.1,4796.8,0.5136]
[1756047721856,1.1728,4796.9,4796.8,1.49654]
[1756047722056,1.1728,4796.9,4796.8,1.82844]
[1756047722255,1.3884,4797.7,4797.6,0.59267]
[1756047722557,1.1728,4797.7,4797.6,1.4114]
[1756047722765,1.3884,4797.7,4797.6,1.0795]
[1756047723157,1.3884,4797.7,4797.6,0.2601]
[1756047723359,0.41699,4797.5,4797.3,0.2601]
[1756047723552,1.1728,4797.4,4797.3,1.82839]
[1756047723758,0.9124,4797.4,4797.3,1.82839]
[1756047724854,0.8153,4797.7,4797.6,0.5659]
[1756047725054,0.8153,4797.7,4797.6,1.82837]
[1756047725055,0.3283,4797.7,4797.6,1.82837]
[1756047725257,0.9124,4797.9,4797.8,1.82835]
[1756047725455,0.26191223,4798.1,4798.0,0.98284]
[1756047725659,0.16341223,4798.1,4798.0,1.82834]
[1756047725863,0.00151223,4798.1,4798.0,1.82834]
[1756047728659,0.00151223,4798.1,4798.0,1.84914]
[1756047728963,1.1364,4799.2,4799.1,1.84514]
[1756047729469,1.1364,4799.2,4799.1,1.49944]
[1756047729669,1.1364,4799.2,4799.1,1.84514]
[1756047729871,1.13829334,4799.2,4799.1,1.84514]
[1756047730264,1.34879334,4799.2,4799.1,0.2552]
[1756047730568,1.83216435,4799.2,4799.1,0.2552]
[1756047730758,1.34879334,4799.2,4799.1,0.2552]
[1756047731362,1.62186765,4799.2,4799.1,1.4283]
[1756047732368,0.00189334,4799.2,4799.1,1.4283]
[1756047733861,1.13829334,4799.2,4799.1,1.4283]
[1756047734267,1.34879334,4799.2,4799.1,0.4281]
[1756047734463,1.83241558,4799.2,4799.1,0.2552]
[1756047734770,1.83241558,4799.2,4798.7,0.266]
[1756047734771,1.1364,4798.8,4798.7,1.11097]
[1756047734971,1.1364,4798.8,4798.7,1.49947]
[1756047735272,1.1364,4798.8,4798.7,1.4283]
[1756047735476,1.62019478,4798.8,4798.7,1.4283]
[1756047736167,1.37609478,4798.8,4798.7,1.4283]
[1756047736372,0.48379478,4798.8,4798.7,1.4283]
[1756047736769,1.62019478,4798.8,4798.7,1.4283]
[1756047737473,0.48379478,4798.8,4798.7,1.4283]
[1756047738178,1.34879334,4799.2,4799.1,1.0826]
[1756047738475,0.5453,4798.8,4798.7,0.6941]
[1756047738669,1.62044424,4798.8,4798.7,1.4283]
[1756047741279,1.02934424,4798.8,4798.7,1.4283]
[1756047742277,0.48404424,4798.8,4798.7,1.4283]
[1756047742471,0.347,4799.1,4799.0,1.84515]
[1756047742678,1.03039151,4799.1,4799.0,0.97825]
[1756047742978,1.37739151,4799.1,4799.0,0.97825]
[1756047743376,1.03039151,4799.1,4799.0,1.84515]
[1756047743566,1.37739151,4799.1,4799.0,1.84515]
[1756047743772,1.62149151,4799.1,4799.0,1.84515]
[1756047746278,1.62149151,4799.1,4799.0,0.2552]
[1756047746279,1.82869151,4799.1,4799.0,0.2552]
[1756047746580,1.82869151,4799.1,4799.0,1.4283]
[1756047746776,1.62149151,4799.1,4799.0,1.4283]
[1756047748178,0.81289151,4799.1,4799.0,1.4283]
[1756047748375,1.62149151,4799.1,4799.0,1.4283]
[1756047749276,0.64369151,4799.1,4799.0,1.4283]
[1756047749477,1.62149151,4799.1,4799.0,1.4283]
[1756047751477,0.5911,4797.8,4797.7,0.266]
[1756047751681,1.1364,4797.5,4797.4,0.41698]
[1756047751880,1.1364,4797.5,4797.4,1.59008]
[1756047752188,1.1364,4797.5,4797.4,1.84528]
[1756047759383,0.5489,4797.0,4796.9,0.96352]
[1756047759587,1.321,4797.0,4796.9,0.7835]
[1756047759990,1.1194,4797.0,4796.9,1.3631]
[1756047760793,1.321,4797.0,4796.9,0.2466]
[1756047761498,1.321,4797.0,4796.9,1.3631]
[1756047761995,1.1194,4797.0,4796.9,1.3631]
[1756047763003,1.321,4797.0,4796.9,0.4074]
[1756047763208,1.321,4797.0,4796.9,0.2466]
[1756047765206,1.321,4797.0,4796.9,1.0301]
[1756047765503,1.321,4797.0,4796.9,1.3631]
[1756047766106,0.3228,4797.0,4796.9,1.3631]
[1756047766302,0.41695,4797.9,4797.5,1.78008]
[1756047766498,1.53637,4797.7,4797.6,1.3631]
[1756047769614,1.73797,4797.7,4797.6,1.3631]
[1756047769912,1.73797,4797.7,4797.6,0.2466]
[1756047770612,1.73797,4797.7,4797.6,0.6444]
[1756047771313,1.73797,4797.7,4797.6,1.0301]
[1756047771609,0.7721,4797.3,4796.8,0.87004]
[1756047771809,1.1194,4796.9,4796.8,1.1165]
[1756047772314,1.1194,4796.9,4796.8,1.3631]
[1756047775814,1.38833065,4797.8,4797.2,0.3857]
[1756047776017,20.6604,4797.7,4797.6,1.3631]
[1756047776418,1.1194,4797.7,4797.6,1.3631]
[1756047776613,0.2208,4797.2,4796.8,0.2466]
[1756047776808,0.7966,4797.5,4797.4,0.1608]
[1756047777012,0.7966,4797.5,4797.4,1.78009]
[1756047777211,0.7966,4797.5,4797.4,1.23109]
[1756047777418,1.1194,4797.1,4797.0,0.237]
[1756047777618,0.5489,4796.9,4796.8,0.3768]
[1756047777813,1.321,4796.9,4796.8,0.6138]
[1756047778016,0.5489,4797.8,4797.7,1.78006]
[1756047778310,20.0889,4797.8,4797.7,1.78006]
[1756047778510,0.41696,4797.7,4797.5,0.41698]
[1756047778715,0.5489,4797.3,4797.2,1.5335]
[1756047778919,0.8717,4797.6,4797.5,0.96348]
[1756047779130,20.6594,4797.6,4797.5,1.53348]
[1756047779421,20.6594,4797.6,4797.5,1.78008]
[1756047780014,1.1194,4797.6,4797.5,1.78008]
[1756047780210,20.6594,4797.6,4797.5,1.78008]
[1756047780416,20.6584,4797.6,4797.5,1.78008]
[1756047780614,1.1194,4798.5,4798.4,1.78]
[1756047780820,0.00189334,4799.2,4797.8,1.04239]
[1756047780821,0.8717,4798.9,4798.8,0.96336]
[1756047781017,0.8717,4798.9,4798.8,1.77996]
[1756047781018,21.14619627,4798.9,4798.8,1.77996]
[1756047781419,1.53632,4798.2,4798.1,0.2466]
[1756047781628,21.27592,4798.2,4798.1,0.2466]
[1756047781818,1.321,4797.9,4797.8,0.2466]
[1756047782015,1.321,4797.9,4797.8,0.6234]
[1756047782323,1.321,4797.9,4797.8,1.0301]
[1756047782519,1.1194,4797.9,4797.8,1.0301]
[1756047782714,19.538,4798.2,4797.2,1.04251]
[1756047782715,0.8717,4798.3,4798.2,1.3631]
[1756047782923,20.6564,4798.3,4798.2,1.0301]
[1756047783118,20.858,4798.3,4798.2,1.0301]
[1756047783523,1.321,4797.9,4797.8,0.237]
[1756047783923,1.321,4797.9,4797.8,0.3978]
[1756047784218,1.321,4797.9,4797.8,0.2466]
[1756047784521,1.1194,4797.5,4797.4,0.8795]
[1756047784721,20.6544,4797.5,4797.4,0.8795]
[1756047784919,1.321,4797.4,4797.3,0.2466]
[1756047785118,1.1194,4797.4,4797.3,1.3631]
[1756047785322,1.1194,4797.4,4797.3,0.2466]
[1756047785323,1.321,4797.4,4797.3,0.2466]
[1756047785516,1.1194,4797.3,4797.2,1.0301]
[1756047785715,1.321,4797.3,4797.2,0.7931]
[1756047785922,1.321,4797.3,4797.2,0.4074]
[1756047786220,1.321,4797.3,4797.1,0.41701]
[1756047786221,1.1194,4797.2,4797.1,1.78011]
[1756047788316,1.3123,4797.2,4797.1,0.5771]
[1756047788522,1.3123,4797.2,4797.1,0.4074]
[1756047788722,1.3123,4797.2,4797.1,0.797]
[1756047788922,0.161,4797.7,4797.6,1.31957]
[1756047789125,1.134,4798.0,4797.9,1.22764]
[1756047789315,20.666,4798.0,4797.9,1.80984]
[1756047789522,20.4318,4798.0,4797.9,1.80984]
[1756047791727,20.4308,4798.0,4797.9,1.80984]
[1756047792226,20.665,4798.0,4797.9,1.80984]
[1756047795327,40.8,4799.0,4797.9,0.837]
[1756047795531,1.31667,4798.8,4798.7,0.81867]
[1756047795732,1.74377,4798.8,4798.7,0.81867]
[1756047796032,1.74377,4798.8,4798.7,0.65237]
[1756047796632,1.74377,4798.8,4798.7,0.2355]
[1756047797834,1.3269,4798.8,4798.7,0.2355]
[1756047798037,20.4268,4798.8,4798.7,1.3929]
[1756047798338,20.661,4798.8,4798.7,1.3929]
[1756047798526,1.134,4798.8,4798.7,1.3929]
[1756047798728,20.661,4798.8,4798.7,1.3929]
[1756047798928,0.78949334,4799.2,4799.1,0.97274]
[1756047799127,20.31649334,4799.2,4799.1,1.80974]
[1756047799530,20.66289334,4799.2,4799.1,1.80974]
[1756047800331,1.13589334,4799.2,4799.1,1.80974]
[1756047800535,20.42669334,4799.2,4799.1,1.80974]
[1756047801337,20.66089334,4799.2,4799.1,1.80974]
[1756047802338,20.65989334,4799.2,4799.1,1.80974]
[1756047803128,20.65789334,4799.2,4799.1,1.80974]
[1756047804232,1.13589334,4799.2,4799.1,1.80974]
[1756047804538,20.85079334,4799.2,4799.1,1.46304]
[1756047806031,20.85079334,4799.2,4799.1,0.65234]
[1756047806335,20.85079334,4799.2,4799.1,0.41684]
[1756047807133,20.85079334,4799.2,4799.1,0.65234]
[1756047807430,20.85079334,4799.2,4799.1,0.91026118]
[1756047808441,20.85079334,4799.2,4799.1,0.49344677]
[1756047810635,20.85079334,4799.2,4799.1,1.30414677]
[1756047810836,20.85079334,4799.2,4799.1,0.49344677]
[1756047811841,20.85079334,4799.2,4799.1,1.07574677]
[1756047812141,20.85079334,4799.2,4799.1,1.65084677]
[1756047814035,1.13589334,4799.2,4799.1,1.65084677]
[1756047814238,20.64789334,4799.2,4799.1,1.65084677]
[1756047815238,20.64789334,4799.2,4799.1,1.65083157]
[1756047815435,1.13589334,4799.2,4799.1,1.65083157]
[1756047815636,20.64789334,4799.2,4799.1,1.65077791]
[1756047816235,1.13589334,4799.2,4799.1,1.65077791]
[1756047816640,20.64689334,4799.2,4799.1,1.65077791]
[1756047816838,1.13589334,4799.2,4799.1,1.65077791]
[1756047817041,20.64689334,4799.2,4799.1,1.65077791]
[1756047817547,20.83119334,4799.2,4799.1,1.65077791]
[1756047818044,20.83119334,4799.2,4799.1,1.30407791]
[1756047819047,20.64489334,4799.2,4799.1,1.63777791]
[1756047819346,20.82919334,4799.2,4799.1,1.63777791]
[1756047820346,1.32019334,4799.2,4799.1,1.63777791]
[1756047820546,20.82819334,4799.2,4799.1,1.63777791]
[1756047820846,20.82819334,4799.2,4799.1,1.30407791]
[1756047821646,20.82819334,4799.2,4799.1,1.30428282]
[1756047822043,20.82719334,4799.2,4799.1,1.30428282]
[1756047822343,22.21439776,4799.2,4799.1,0.25808282]
[1756047822849,20.82719334,4799.2,4799.1,0.48978282]
[1756047824955,20.82719334,4799.2,4799.1,0.48999839]
[1756047825146,20.82719334,4799.2,4799.1,0.49003079]
[1756047825540,1.13589334,4799.2,4799.1,1.59977229]
[1756047825738,0.00189334,4799.2,4799.1,1.59977229]
[1756047825942,0.00189334,4799.2,4799.1,1.78636735]
[1756047826952,1.12349334,4799.2,4799.1,1.78636735]
[1756047827947,0.41689,4798.6,4798.5,1.83984579]
[1756047828150,0.3839,4797.5,4797.2,0.8796]
[1756047828343,2.10220442,4797.3,4797.2,1.1009]
[1756047828654,0.3311,4797.2,4796.8,0.2317]
[1756047828846,0.3839,4796.9,4796.8,0.1551]
[1756047829153,19.8849,4796.9,4796.8,0.7759]
[1756047829351,0.3839,4796.9,4796.8,1.3413]
[1756047829651,19.6468,4797.3,4797.2,1.75831]
[1756047829852,20.0307,4797.3,4797.2,1.75831]
[1756047830152,0.5307,4797.3,4797.2,1.75831]
[1756047830546,20.0307,4797.3,4797.2,1.75831]
[1756047831249,20.0307,4797.3,4797.2,1.42461]
[1756047831554,20.215,4797.3,4797.2,1.42461]
[1756047831853,20.215,4797.3,4797.2,0.64871]
[1756047832053,0.715,4797.0,4796.9,0.41703]
[1756047832350,0.3839,4796.7,4796.6,0.41706]
[1756047832551,0.715,4796.7,4796.6,0.64876]
[1756047832752,0.715,4796.7,4796.6,0.87966]
[1756047832951,0.715,4796.7,4796.6,1.03476]
[1756047833142,0.715,4796.7,4796.6,1.42466]
[1756047833346,0.5307,4796.7,4796.6,1.75836]
[1756047833746,19.5,4796.8,4796.7,1.3413]
[1756047833942,19.8859,4797.2,4797.1,0.545]
[1756047834148,0.3839,4797.2,4797.1,1.0076]
[1756047834554,0.5307,4797.2,4797.1,1.3413]
[1756047839456,0.3011,4797.5,4797.4,1.75829]
[1756047839660,1.38720442,4799.0,4798.6,0.41688]
[1756047839854,20.219,4798.7,4798.6,1.75818]
[1756047840460,0.715,4798.7,4798.6,1.75818]
[1756047840653,20.0347,4798.7,4798.6,1.75818]
[1756047841556,0.15619334,4799.2,4799.1,1.42444]
[1756047841861,0.15619334,4799.2,4799.1,1.75814]
[1756047842055,0.53259334,4799.2,4799.1,1.75814]
[1756047842558,0.15619334,4799.2,4799.1,1.75814]
[1756047842754,0.00189334,4799.2,4799.1,1.75814]
[1756047844355,0.53259334,4799.2,4799.1,1.75814]
[1756047845352,0.3862,4802.0,4801.9,1.527]
[1756047845554,0.65309372,4802.0,4801.9,1.3413]
[1756047845766,0.5405,4802.0,4801.9,1.3413]
[1756047845957,0.5405,4802.0,4801.9,1.7579]
[1756047845958,0.9169,4802.0,4801.9,1.7579]
[1756047846155,20.8209,4802.0,4801.9,1.61171474]
[1756047846360,25.00710603,4802.0,4801.9,0.0019126]
[1756047847155,20.82280603,4802.0,4801.9,0.6072126]
[1756047847857,21.43559603,4802.0,4801.9,0.2313126]
[1756047849271,0.7094,4802.6,4802.5,1.3569]
[1756047849675,20.8238,4802.6,4802.5,1.3569]
[1756047850468,0.9338,4802.6,4802.5,1.3569]
[1756047850773,20.4409,4802.6,4802.5,1.3569]
[1756047851267,20.8068,4802.6,4802.5,1.3569]
[1756047851472,21.22334,4802.6,4802.5,1.3569]
[1756047852372,1.35034,4802.6,4802.5,1.3569]
[1756047852571,0.41654,4802.6,4802.5,1.3569]
[1756047852772,0.423223,4806.4,4804.5,0.41637]
[1756047852963,0.41623,4806.2,4804.8,4.08298903]
[1756047853168,0.657523,4806.4,4804.8,4.08298903]
[1756047853169,19.893,4806.1,4805.2,1.22421]
[1756047853370,0.41628,4805.6,4804.8,4.08298903]
[1756047853568,19.908,4806.0,4804.6,4.10378903]
[1756047853569,0.65056,4805.9,4804.6,4.10378903]
[1756047853766,19.928,4805.8,4804.7,0.8079]
[1756047853966,0.6055,4805.6,4804.6,0.8079]
[1756047854269,19.926,4805.5,4805.0,0.5696]
[1756047854468,0.6055,4805.9,4805.2,0.5696]
[1756047854670,20.35826,4805.8,4804.9,0.5785]
[1756047854863,19.942,4805.8,4804.8,4.08298903]
[1756047855064,0.41631,4805.3,4805.2,0.8079]
[1756047855275,0.8398,4805.3,4804.7,0.5785]
[1756047855471,19.935,4805.3,4804.8,4.08298903]
[1756047855769,19.934,4805.4,4805.1,0.3402]
[1756047855973,20.36729,4805.6,4804.9,0.2383]
[1756047856176,1.0219,4804.2,4804.1,0.4677]
[1756047856472,20.9629,4804.2,4804.1,0.8079]
[1756047856673,1.02193,4803.9,4803.8,0.2294]
[1756047856967,1.25623,4803.9,4803.8,0.2294]
[1756047857172,19.959,4804.1,4804.0,0.2383]
[1756047857369,0.5901,4804.9,4803.7,4.08298903]
[1756047857370,19.955,4804.4,4804.1,0.8079]
[1756047857565,19.955,4804.7,4803.7,4.08298903]
[1756047857765,0.41636,4804.8,4803.7,4.08298903]
[1756047857968,19.955,4805.0,4804.2,4.08298903]
[1756047858164,0.41627,4805.8,4804.9,0.41634]
[1756047858365,19.963,4805.7,4805.2,0.64571]
[1756047858573,0.2497,4805.9,4805.3,0.4163]
[1756047858774,19.965,4806.2,4804.8,0.8079]
[1756047858968,0.41623,4806.3,4804.8,0.8079]
[1756047859166,0.3558,4806.8,4805.9,0.41625]
[1756047859372,0.484,4806.9,4806.3,0.8079]
[1756047859774,0.779023,4806.4,4806.3,0.4677]
[1756047859978,0.6055,4806.1,4806.0,0.2294]
[1756047860475,0.6055,4806.1,4804.8,4.08298903]
[1756047860476,0.41628,4805.7,4804.9,0.99484]
[1756047860672,1.02178,4805.7,4805.0,0.2294]
[1756047860871,0.41632,4805.2,4804.6,0.41636]
[1756047861073,0.41632,4805.2,4804.8,0.5785]
[1756047861370,0.4163,4805.4,4805.1,0.8079]
[1756047861568,0.41628,4805.6,4805.2,0.8079]
[1756047861771,0.6055,4805.9,4804.8,0.41635]
[1756047862177,0.65061,4805.3,4805.1,0.8079]